fUST/lending_fUST_20241112
["ID","MTS","AMOUNT","RATE_DAILY","PERIOD"]
[342024126,1731366671891,-3060.59,0.000276,30]
[342024127,1731366671900,-252.0,0.00027616,2]
[342024128,1731366671910,-165.0,0.00027616,2]
[342024129,1731366671920,-200.0,0.0002767,19]
[342024130,1731366671930,-605.39,0.00027671,2]
[342024131,1731366671939,-500.0,0.00027671,2]
[342024132,1731366671949,-1847.16,0.00027671,2]
[342024133,1731366671959,-344.39,0.00027671,2]
[342024134,1731366671969,-773.58,0.00027671,2]
[342024135,1731366671979,-892.78,0.00027671,2]
[342024136,1731366671988,-500.0,0.00027671,2]
[342024137,1731366672004,-1690.05,0.00027671,2]
[342024138,1731366672014,-1463.08,0.00027671,2]
[342024139,1731366672024,-597.21,0.00027671,2]
[342024140,1731366672034,-482.84220301,0.00027671,2]
[342024141,1731366672042,-500.0,0.00027671,2]
[342024142,1731366672052,-1032.03,0.00027671,2]
[342024143,1731366672062,-1391.59,0.00027671,2]
[342024144,1731366672072,-567.95,0.00027671,2]
[342024145,1731366672083,-990.39,0.00027671,2]
[342024146,1731366672092,-616.05,0.00027671,2]
[342024147,1731366672102,-721.99,0.00027671,2]
[342024148,1731366672112,-1000.2,0.00027671,2]
[342024149,1731366672122,-3306.66,0.00027671,2]
[342024150,1731366672132,-913.04,0.00027671,2]
[342024151,1731366672142,-3266.61,0.00027671,2]
[342024152,1731366672151,-546.62,0.00027671,2]
[342024153,1731366672161,-356.06996321,0.00027671,2]
[342024154,1731366672172,-515.82,0.00027671,2]
[342024155,1731366672182,-1343.72,0.00027671,2]
[342024156,1731366672193,-1636.7,0.00027671,2]
[342024157,1731366672203,-1206.33,0.00027671,2]
[342024158,1731366672213,-3685.44,0.00027671,2]
[342024159,1731366672223,-862.81,0.00027671,2]
[342024160,1731366672232,-4367.84,0.00027671,2]
[342024161,1731366672244,-630.54,0.00027671,2]
[342024162,1731366672254,-708.15,0.00027671,2]
[342024163,1731366672264,-1032.4,0.00027671,2]
[342024164,1731366672274,-17226.76,0.00027671,2]
[342024165,1731366672285,-300.0,0.000277,2]
[342024166,1731366672295,-300.547095,0.000277,7]
[342024167,1731366672304,-300.547095,0.000277,7]
[342024168,1731366672314,-278.14135,0.000277,7]
[342024169,1731366672323,-278.14135,0.000277,7]
[342024170,1731366672333,-158.3,0.00027762,5]
[342024171,1731366672418,-500.0,0.0002777,2]
[342024172,1731366672429,-154.955,0.000278,120]
[342024173,1731366672439,-154.986,0.000278,120]
[342024174,1731366672449,-3200.0,0.00027875,2]
[342024175,1731366672459,-500.0,0.00027875,2]
[342024176,1731366672469,-151.0,0.00027875,2]
[342024177,1731366672479,-6768.15,0.000279,30]
[342024178,1731366672489,-160.0,0.00027924,6]
[342024179,1731366672501,-1131.82189702,0.00027935,2]
[342024180,1731366672512,-151.0,0.00027945,7]
[342024181,1731366672521,-605.39,0.00027945,2]
[342024182,1731366672531,-403.07,0.00027945,2]
[342024183,1731366672541,-1847.16,0.00027945,2]
[342024184,1731366672551,-773.58,0.00027945,2]
[342024185,1731366672561,-892.78,0.00027945,2]
[342024186,1731366672572,-267.22,0.00027945,2]
[342024187,1731366672582,-1690.05,0.00027945,2]
[342024188,1731366672592,-1463.08,0.00027945,2]
[342024189,1731366672602,-597.21,0.00027945,2]
[342024190,1731366672611,-179.17,0.00027945,2]
[342024191,1731366672621,-1032.03,0.00027945,2]
[342024192,1731366672631,-1391.59,0.00027945,2]
[342024193,1731366672641,-567.95,0.00027945,2]
[342024194,1731366672651,-990.39,0.00027945,2]
[342024195,1731366672661,-616.05,0.00027945,2]
[342024196,1731366672672,-721.99,0.00027945,2]
[342024197,1731366672682,-1000.2,0.00027945,2]
[342024198,1731366672696,-3306.66,0.00027945,2]
[342024199,1731366672705,-913.04,0.00027945,2]
[342024200,1731366672715,-3266.61,0.00027945,2]
[342024201,1731366672724,-546.62,0.00027945,2]
[342024202,1731366672735,-515.82,0.00027945,2]
[342024203,1731366672749,-1343.72,0.00027945,2]
[342024204,1731366672758,-1636.7,0.00027945,2]
[342024205,1731366672769,-1206.33,0.00027945,2]
[342024206,1731366672781,-3685.44,0.00027945,2]
[342024207,1731366672791,-862.81,0.00027945,2]
[342024208,1731366672800,-4367.84,0.00027945,2]
[342024209,1731366672810,-630.54,0.00027945,2]
[342024210,1731366672820,-708.15,0.00027945,2]
[342024211,1731366672830,-1032.4,0.00027945,2]
[342024212,1731366672840,-17226.76,0.00027945,2]
[342024213,1731366672850,-31953.12166963,0.0002799,2]
[342024214,1731366672859,-1165.90142276,0.0002799,7]
[342024215,1731366672870,-160.0,0.00027999,10]
[342024216,1731366672879,-160.0,0.00027999,10]
[342024217,1731366672889,-160.0,0.00027999,10]
[342024218,1731366672899,-178.19241804,0.00027999,10]
[342024219,1731366672909,-160.0,0.00027999,10]
[342024220,1731366672918,-161.541478,0.00027999,10]
[342024221,1731366672928,-351817.26719503,0.00028,15]
[342024222,1731366672937,-255.469476,0.00028,7]
[342024223,1731366672946,-500.0,0.00028,26]
[342024224,1731366672955,-859.731837,0.00028025,2]
[342024225,1731366672965,-306.214342,0.000281,13]
[342024226,1731366672975,-413.5135009,0.0002811,30]
[342024227,1731366672984,-151.0,0.00028135,2]
[342024228,1731366672997,-500.0,0.00028146,2]
[342024229,1731366673007,-2500.0,0.00028175,3]
[342024230,1731366673016,-2500.0,0.00028184,3]
[342024231,1731366673026,-2500.0,0.00028193,3]
[342024232,1731366673036,-2500.0,0.00028201,3]
[342024233,1731366673046,-2500.0,0.0002821,3]
[342024234,1731366673056,-2500.0,0.00028219,3]
[342024235,1731366673066,-805.37365952,0.00028219,3]
[342024236,1731366673077,-605.44,0.00028219,2]
[342024237,1731366673088,-1847.33013365,0.00028219,2]
[342024238,1731366673098,-773.79,0.00028219,2]
[342024239,1731366673109,-892.81,0.00028219,2]
[342024240,1731366673118,-1690.14267988,0.00028219,2]
[342024241,1731366673128,-1463.18756177,0.00028219,2]
[342024242,1731366673137,-597.39,0.00028219,2]
[342024243,1731366673147,-1032.03,0.00028219,2]
[342024244,1731366673157,-1391.78172331,0.00028219,2]
[342024245,1731366673167,-568.09,0.00028219,2]
[342024246,1731366673176,-990.53,0.00028219,2]
[342024247,1731366673186,-616.11,0.00028219,2]
[342024248,1731366673196,-722.21,0.00028219,2]
[342024249,1731366673206,-1000.25265272,0.00028219,2]
[342024250,1731366673216,-3306.82476361,0.00028219,2]
[342024251,1731366673225,-913.06,0.00028219,2]
[342024252,1731366673235,-3266.77193642,0.00028219,2]
[342024253,1731366673251,-546.64,0.00028219,2]
[342024254,1731366673261,-515.96,0.00028219,2]
[342024255,1731366673272,-1343.77,0.00028219,2]
[342024256,1731366673282,-1636.71,0.00028219,2]
[342024257,1731366673292,-1206.45,0.00028219,2]
[342024258,1731366673302,-3685.6012906,0.00028219,2]
[342024259,1731366673312,-863.01,0.00028219,2]
[342024260,1731366673321,-4367.96913295,0.00028219,2]
[342024261,1731366673331,-630.67286951,0.00028219,2]
[342024262,1731366673341,-708.28,0.00028219,2]
[342024263,1731366673351,-1032.47,0.00028219,2]
[342024264,1731366673360,-17226.87855807,0.00028219,2]
[342024265,1731366673371,-155.135,0.000283,60]
[342024266,1731366673380,-160.0,0.00028301,7]
[342024267,1731366673390,-158.3,0.00028343,6]
[342024268,1731366673400,-23252.76,0.000284,14]
[342024269,1731366673410,-1546.44,0.000284,14]
[342024270,1731366673419,-500.0,0.00028517,2]
[342024271,1731366673430,-823.0,0.00028563,2]
[342024272,1731366673439,-500.0,0.00028589,7]
[342024273,1731366673449,-500.0,0.00028589,7]
[342024274,1731366673458,-500.0,0.00028589,7]
[342024275,1731366673468,-300.53,0.00028589,7]
[342024276,1731366673479,-500.0,0.00028589,7]
[342024277,1731366673489,-500.0,0.00028589,7]
[342024278,1731366673503,-500.0,0.00028589,7]
[342024279,1731366673513,-500.0,0.00028589,7]
[342024280,1731366673524,-500.0,0.00028589,7]
[342024281,1731366673533,-500.0,0.00028589,7]
[342024282,1731366673543,-500.0,0.00028589,7]
[342024283,1731366673553,-500.0,0.00028589,7]
[342024284,1731366673562,-500.0,0.00028589,7]
[342024285,1731366673572,-500.0,0.00028589,7]
[342024286,1731366673581,-500.0,0.00028589,7]
[342024287,1731366673590,-500.0,0.00028589,7]
[342024288,1731366673600,-404.95,0.00028589,7]
[342024289,1731366673609,-3060.59,0.000286,30]
[342024290,1731366673619,-160.0,0.00028677,8]
[342024291,1731366673628,-300.0,0.000287,2]
[342024292,1731366673637,-500.0,0.00028883,2]
[342024293,1731366673647,-500.0,0.00028891,5]
[342024294,1731366673658,-821.03849095,0.00028891,5]
[342024295,1731366673668,-2000.0,0.00028891,5]
[342024296,1731366673678,-2000.0,0.00028891,5]
[342024297,1731366673690,-2000.0,0.00028891,5]
[342024298,1731366673700,-2000.0,0.00028891,2]
[342024299,1731366673786,-6768.15,0.000289,30]
[342024300,1731366673796,-158.3,0.00028923,6]
[342024301,1731366673805,-1131.82189702,0.00028955,2]
[342024302,1731366673815,-170.4016001,0.00028986,30]
[342024303,1731366673824,-153.0,0.00028986,30]
[342024304,1731366673834,-153.0,0.00028986,30]
[342024305,1731366673844,-153.0,0.00028986,30]
[342024306,1731366673855,-153.0,0.00028986,30]
[342024307,1731366673865,-153.0,0.00028986,30]
[342024308,1731366673875,-153.0,0.00028986,30]
[342024309,1731366673884,-153.0,0.00028986,30]
[342024310,1731366673893,-153.0,0.00028986,30]
[342024311,1731366673903,-153.0,0.00028986,30]
[342024312,1731366673912,-153.0,0.00028986,30]
[342024313,1731366673923,-153.0,0.00028986,30]
[342024314,1731366673933,-153.0,0.00028986,30]
[342024315,1731366673942,-153.0,0.00028986,30]
[342024316,1731366673952,-153.0,0.00028986,30]
[342024317,1731366673962,-153.0,0.00028986,30]
[342024318,1731366673971,-153.0,0.00028986,30]
[342024319,1731366673980,-153.0,0.00028986,30]
[342024320,1731366673990,-252.0,0.00028997,2]
[342024321,1731366674003,-165.0,0.00028997,2]
[342024322,1731366674013,-31073.59,0.00029,5]
[342024323,1731366674023,-2472.15,0.00029,2]
[342024324,1731366674032,-500.0,0.00029,29]
[342024325,1731366674041,-500.0,0.00029041,7]
[342024326,1731366674051,-500.0,0.00029041,7]
[342024327,1731366674062,-500.0,0.00029041,7]
[342024328,1731366674072,-500.0,0.00029041,7]
[342024329,1731366674081,-500.0,0.00029041,7]
[342024330,1731366674090,-1333.0,0.00029041,120]
[342024331,1731366674100,-500.0,0.00029053,7]
[342024332,1731366674110,-160.0,0.00029053,9]
[342024333,1731366674119,-239.308741,0.0002906,2]
[342024334,1731366674129,-172.274969,0.0002906,2]
[342024335,1731366674138,-259.666291,0.0002906,2]
[342024336,1731366674148,-478.617482,0.0002906,2]
[342024337,1731366674157,-172.274968,0.0002906,2]
[342024338,1731366674167,-444.670927,0.0002906,2]
[342024339,1731366674177,-239.308742,0.0002906,2]
[342024340,1731366674187,-222.335464,0.0002906,2]
[342024341,1731366674197,-500.0,0.00029091,5]
[342024342,1731366674208,-914.59266253,0.00029091,5]
[342024343,1731366674218,-2000.0,0.00029091,5]
[342024344,1731366674228,-500.0,0.00029091,5]
[342024345,1731366674237,-2000.0,0.00029091,5]
[342024346,1731366674250,-2000.0,0.00029091,5]
[342024347,1731366674260,-530.0,0.00029137,2]
[342024348,1731366674269,-1123.0,0.00029151,2]
[342024349,1731366674279,-2391.0,0.00029151,2]
[342024350,1731366674289,-500.0,0.00029244,2]
[342024351,1731366674298,-153.8080031,0.0002926,30]
[342024352,1731366674308,-212.0891387,0.0002926,30]
[342024353,1731366674318,-303.7777124,0.0002926,30]
[342024354,1731366674328,-153.0,0.0002926,30]
[342024355,1731366674338,-303.7777124,0.0002926,30]
[342024356,1731366674347,-153.0,0.0002926,30]
[342024357,1731366674356,-212.0891387,0.0002926,30]
[342024358,1731366674366,-153.0,0.0002926,30]
[342024359,1731366674376,-212.0891387,0.0002926,30]
[342024360,1731366674391,-212.0891387,0.0002926,30]
[342024361,1731366674411,-153.0,0.0002926,30]
[342024362,1731366674428,-153.0,0.0002926,30]
[342024363,1731366674447,-212.0891387,0.0002926,30]
[342024364,1731366674468,-153.0,0.0002926,30]
[342024365,1731366674485,-207.3280823,0.0002926,30]
[342024366,1731366674504,-153.0,0.0002926,30]
[342024367,1731366674518,-155.1880234,0.0002926,30]
[342024368,1731366674535,-5000.0,0.00029277,30]
[342024369,1731366674554,-2000.0,0.00029291,5]
[342024370,1731366674573,-1001.40731008,0.00029291,5]
[342024371,1731366674585,-168.32336014,0.00029315,7]
[342024372,1731366674602,-251.48533781,0.00029315,7]
[342024373,1731366674618,-500.0,0.00029315,7]
[342024374,1731366674635,-847.65757693,0.00029315,7]
[342024375,1731366674649,-500.0,0.00029315,7]
[342024376,1731366674665,-500.0,0.00029315,7]
[342024377,1731366674684,-528.227829,0.00029315,7]
[342024378,1731366674699,-23252.76,0.000294,14]
[342024379,1731366674713,-1546.44,0.000294,14]
[342024380,1731366674727,-239.308741,0.00029423,2]
[342024381,1731366674743,-259.666291,0.00029423,2]
[342024382,1731366674759,-478.617482,0.00029423,2]
[342024383,1731366674773,-444.670927,0.00029423,2]
[342024384,1731366674788,-239.308742,0.00029423,2]
[342024385,1731366674804,-222.335464,0.00029423,2]
[342024386,1731366674819,-160.0,0.0002943,10]
[342024387,1731366674834,-5368.0,0.00029494,30]
[342024388,1731366674849,-158.3,0.00029504,7]
[342024389,1731366674863,-157.35985293,0.00029589,7]
[342024390,1731366674879,-500.0,0.00029589,7]
[342024391,1731366674893,-160.24430504,0.00029589,7]
[342024392,1731366674908,-500.0,0.00029589,7]
[342024393,1731366674924,-500.0,0.00029589,7]
[342024394,1731366674939,-1145.42,0.00029589,4]
[342024395,1731366674954,-500.0,0.00029589,2]
[342024396,1731366674969,-614.8763,0.000296,2]
[342024397,1731366674984,-614.8763,0.000296,2]
[342024398,1731366675002,-500.0,0.000296,2]
[342024399,1731366675017,-300.0,0.000297,2]
[342024400,1731366675032,-3060.59,0.000297,30]
[342024401,1731366675047,-1962.0,0.00029717,20]
[342024402,1731366675062,-1962.0,0.00029717,20]
[342024403,1731366675076,-1962.0,0.00029717,20]
[342024404,1731366675090,-1962.0,0.00029717,20]
[342024405,1731366675105,-1962.0,0.00029717,20]
[342024406,1731366675120,-1962.0,0.00029717,20]
[342024407,1731366675135,-1962.0,0.00029717,20]
[342024408,1731366675150,-1962.0,0.00029717,20]
[342024409,1731366675165,-1962.0,0.00029717,20]
[342024410,1731366675181,-1962.0,0.00029717,20]
[342024411,1731366675195,-1962.0,0.00029717,20]
[342024412,1731366675209,-1962.0,0.00029717,20]
[342024413,1731366675225,-1962.0,0.00029717,20]
[342024414,1731366675241,-1962.0,0.00029717,20]
[342024415,1731366675263,-1962.0,0.00029717,20]
[342024416,1731366675278,-1962.0,0.00029717,20]
[342024417,1731366675382,-1962.0,0.00029717,20]
[342024418,1731366675407,-1962.0,0.00029717,20]
[342024419,1731366675418,-1962.0,0.00029717,20]
[342024420,1731366675428,-1962.0,0.00029717,20]
[342024421,1731366675438,-1537.397347,0.00029786,2]
[342024422,1731366675447,-1901.749585,0.00029786,2]
[342024423,1731366675457,-239.308741,0.00029786,2]
[342024424,1731366675467,-259.666291,0.00029786,2]
[342024425,1731366675476,-478.617482,0.00029786,2]
[342024426,1731366675486,-444.670927,0.00029786,2]
[342024427,1731366675501,-239.308742,0.00029786,2]
[342024428,1731366675511,-222.335464,0.00029786,2]
[342024429,1731366675522,-156.29418534,0.00029787,2]
[342024430,1731366675531,-6768.15,0.000298,30]
[342024431,1731366675540,-160.0,0.00029806,11]
[342024432,1731366675550,-153.0,0.00029808,30]
[342024433,1731366675560,-250.70734388,0.00029863,7]
[342024434,1731366675570,-500.0,0.00029863,7]
[342024435,1731366675580,-500.0,0.00029863,7]
[342024436,1731366675590,-500.0,0.00029863,7]
[342024437,1731366675600,-200.14,0.00029863,7]
[342024438,1731366675610,-500.0,0.00029868,2]
[342024439,1731366675620,-500.0,0.00029951,2]
[342024440,1731366675629,-1131.82189702,0.00029974,2]
[342024441,1731366675639,-1152.0,0.0002999,2]
[342024442,1731366675649,-600.0,0.00029995,2]
[342024443,1731366675658,-1000.0,0.00029999,5]
[342024444,1731366675668,-160.0,0.00029999,10]
[342024445,1731366675677,-160.0,0.00029999,10]
[342024446,1731366675688,-160.0,0.00029999,10]
[342024447,1731366675700,-160.0,0.00029999,10]
[342024448,1731366675710,-159942.28696897,0.0003,2]
[342024449,1731366675720,-7028.53382216,0.0003,30]
[342024450,1731366675731,-900227.55552909,0.0003,2]
[342024451,1731366675741,-7949.35795764,0.0003,10]
[342024452,1731366675757,-1500.0,0.0003,2]
[342024453,1731366675769,-1021.84028985,0.0003,7]
[342024454,1731366675780,-11736.68987012,0.0003,15]
[342024455,1731366675790,-378.79295264,0.0003,30]
[342024456,1731366675801,-690.60995362,0.0003,30]
[342024457,1731366675811,-6254.55013208,0.0003,2]
[342024458,1731366675820,-10252.96005099,0.0003,30]
[342024459,1731366675830,-13459.44452333,0.0003,3]
[342024460,1731366675839,-2047.67953548,0.0003,30]
[342024461,1731366675849,-167561.12605584,0.0003,2]
[342024462,1731366675858,-2508.0,0.0003,2]
[342024463,1731366675868,-1940.89594639,0.0003,2]
[342024464,1731366675877,-48349.26103891,0.0003,60]
[342024465,1731366675887,-35000.0,0.0003,2]
[342024466,1731366675897,-1000.0,0.0003,2]
[342024467,1731366675907,-391.83512564,0.0003,10]
[342024468,1731366675916,-5001.07392435,0.0003,2]
[342024469,1731366675927,-3507.41122603,0.0003,2]
[342024470,1731366675937,-9392.05699616,0.0003,10]
[342024471,1731366675947,-5615.0,0.0003,20]
[342024472,1731366675957,-151.0,0.0003,7]
[342024473,1731366675967,-151.0,0.0003,7]
[342024474,1731366675977,-218.26,0.0003,30]
[342024475,1731366675987,-300.547095,0.0003,7]
[342024476,1731366676001,-300.547095,0.0003,7]
[342024477,1731366676010,-300.547095,0.0003,7]
[342024478,1731366676020,-300.547095,0.0003,7]
[342024479,1731366676029,-300.547095,0.0003,7]
[342024480,1731366676039,-300.547095,0.0003,7]
[342024481,1731366676048,-278.14135,0.0003,7]
[342024482,1731366676057,-278.14135,0.0003,7]
[342024483,1731366676067,-278.14135,0.0003,7]
[342024484,1731366676077,-278.14135,0.0003,7]
[342024485,1731366676086,-278.14135,0.0003,7]
[342024486,1731366676096,-278.14135,0.0003,7]
[342024487,1731366676106,-151.0,0.0003,120]
[342024488,1731366676115,-151.0,0.0003,120]
[342024489,1731366676123,-212.958,0.0003,2]
[342024490,1731366676133,-152.842,0.0003,2]
[342024491,1731366676142,-303.1212394,0.0003,2]
[342024492,1731366676151,-339246.61630465,0.0003,2]
[342024493,1731366676160,-264.0,0.0003,2]
[342024494,1731366676171,-500.0,0.0003,32]
[342024495,1731366676181,-1269.34275052,0.0003,7]
[342024496,1731366676191,-274.11608275,0.0003,2]
[342024497,1731366676200,-158.3,0.00030084,7]
[342024498,1731366676209,-1000.0,0.00030136,30]
[342024499,1731366676219,-1000.0,0.00030136,30]
[342024500,1731366676226,-1000.0,0.00030136,30]
[342024501,1731366676234,-675.02328602,0.00030136,30]
[342024502,1731366676241,-500.0,0.00030136,7]
[342024503,1731366676257,-500.0,0.00030136,31]
[342024504,1731366676267,-500.0,0.00030136,31]
[342024505,1731366676277,-500.0,0.00030136,31]
[342024506,1731366676288,-500.0,0.00030136,31]
[342024507,1731366676298,-500.0,0.00030136,31]
[342024508,1731366676308,-500.0,0.00030136,31]
[342024509,1731366676318,-500.0,0.00030136,31]
[342024510,1731366676328,-500.0,0.00030136,31]
[342024511,1731366676338,-502.21483592,0.00030136,31]
[342024512,1731366676348,-500.0,0.00030136,2]
[342024513,1731366676358,-500.0,0.00030136,2]
[342024514,1731366676368,-224.65965987,0.00030136,2]
[342024515,1731366676378,-1024.13,0.00030136,120]
[342024516,1731366676387,-1024.13,0.00030136,120]
[342024517,1731366676399,-1024.13,0.00030136,120]
[342024518,1731366676409,-1024.13,0.00030136,120]
[342024519,1731366676419,-1024.13,0.00030136,120]
[342024520,1731366676428,-1024.13,0.00030136,120]
[342024521,1731366676437,-1024.13,0.00030136,120]
[342024522,1731366676447,-1024.13,0.00030136,120]
[342024523,1731366676457,-1024.13,0.00030136,120]
[342024524,1731366676467,-1024.13,0.00030136,120]
[342024525,1731366676478,-1024.13,0.00030136,120]
[342024526,1731366676487,-1024.13,0.00030136,120]
[342024527,1731366676500,-1024.13,0.00030136,120]
[342024528,1731366676509,-1024.13,0.00030136,120]
[342024529,1731366676518,-1024.13,0.00030136,120]
[342024530,1731366676528,-1024.13,0.00030136,120]
[342024531,1731366676537,-1024.13,0.00030136,120]
[342024532,1731366676546,-1024.13,0.00030136,120]
[342024533,1731366676556,-1024.13,0.00030136,120]
[342024534,1731366676566,-1024.13,0.00030136,120]
[342024535,1731366676576,-1024.13,0.00030136,120]
[342024536,1731366676586,-1024.13,0.00030136,120]
[342024537,1731366676596,-1024.13,0.00030136,120]
[342024538,1731366676605,-1024.32255562,0.00030136,120]
[342024539,1731366676615,-999.0,0.00030136,120]
[342024540,1731366676626,-500.0,0.00030137,7]
[342024541,1731366676636,-500.0,0.00030137,7]
[342024542,1731366676646,-56116.8940704,0.00030137,10]
[342024543,1731366676656,-500.0,0.00030137,7]
[342024544,1731366676666,-1537.397347,0.00030149,2]
[342024545,1731366676680,-1901.749585,0.00030149,2]
[342024546,1731366676690,-239.308741,0.00030149,2]
[342024547,1731366676699,-259.666291,0.00030149,2]
[342024548,1731366676708,-478.617482,0.00030149,2]
[342024549,1731366676719,-444.670927,0.00030149,2]
[342024550,1731366676728,-239.308742,0.00030149,2]
[342024551,1731366676737,-222.335464,0.00030149,2]
[342024552,1731366676748,-5000.0,0.00030173,30]
[342024553,1731366676758,-160.0,0.00030183,12]
[342024554,1731366676843,-500.0,0.00030213,3]
[342024555,1731366676853,-399.9087368,0.00030274,30]
[342024556,1731366676863,-500.0,0.00030297,3]
[342024557,1731366676873,-303.1212394,0.000303,2]
[342024558,1731366676884,-600.0,0.00030308,2]
[342024559,1731366676894,-23252.76,0.000304,14]
[342024560,1731366676904,-1546.44,0.000304,14]
[342024561,1731366676914,-500.0,0.00030411,7]
[342024562,1731366676923,-766.98871919,0.00030411,7]
[342024563,1731366676933,-500.0,0.00030411,7]
[342024564,1731366676943,-1999.0,0.00030438,2]
[342024565,1731366676953,-1999.0,0.00030438,2]
[342024566,1731366676962,-1999.0,0.00030438,2]
[342024567,1731366676972,-1999.0,0.00030438,2]
[342024568,1731366676983,-1999.0,0.00030438,2]
[342024569,1731366676993,-1999.0,0.00030438,2]
[342024570,1731366677005,-1999.0,0.00030438,2]
[342024571,1731366677015,-1882.19859824,0.00030438,2]
[342024572,1731366677025,-50609.8464982,0.000305,5]
[342024573,1731366677035,-1537.397347,0.00030513,2]
[342024574,1731366677045,-1901.749585,0.00030513,2]
[342024575,1731366677055,-239.308741,0.00030513,2]
[342024576,1731366677064,-259.666291,0.00030513,2]
[342024577,1731366677075,-478.617482,0.00030513,2]
[342024578,1731366677085,-444.670927,0.00030513,2]
[342024579,1731366677095,-239.308742,0.00030513,2]
[342024580,1731366677105,-222.335464,0.00030513,2]
[342024581,1731366677114,-172.345487,0.00030513,2]
[342024582,1731366677124,-500.0,0.00030553,3]
[342024583,1731366677134,-160.0,0.00030559,13]
[342024584,1731366677144,-303.1212394,0.000306,2]
[342024585,1731366677154,-600.0,0.0003062,2]
[342024586,1731366677166,-500.0,0.00030638,3]
[342024587,1731366677176,-187.83974584,0.0003065,2]
[342024588,1731366677185,-158.3,0.00030665,7]
[342024589,1731366677194,-792.38921136,0.00030685,7]
[342024590,1731366677204,-166.18280593,0.00030685,2]
[342024591,1731366677213,-500.0,0.00030685,7]
[342024592,1731366677224,-500.0,0.00030697,7]
[342024593,1731366677234,-300.0,0.000307,3]
[342024594,1731366677243,-6768.15,0.000307,30]
[342024595,1731366677254,-3060.59,0.000307,30]
[342024596,1731366677263,-520.0,0.00030798,3]
[342024597,1731366677273,-12270.86038631,0.00030855,2]
[342024598,1731366677282,-500.0,0.00030888,3]
[342024599,1731366677293,-500.0,0.00030888,3]
[342024600,1731366677302,-1013.8,0.000309,7]
[342024601,1731366677313,-303.1212394,0.000309,2]
[342024602,1731366677322,-692.3192883,0.000309,30]
[342024603,1731366677332,-300.547095,0.00030904,7]
[342024604,1731366677342,-300.547095,0.00030904,7]
[342024605,1731366677352,-300.547095,0.00030904,7]
[342024606,1731366677361,-300.547095,0.00030904,7]
[342024607,1731366677371,-300.547095,0.00030904,7]
[342024608,1731366677380,-300.547095,0.00030904,7]
[342024609,1731366677389,-300.547095,0.00030904,7]
[342024610,1731366677398,-300.547095,0.00030904,7]
[342024611,1731366677408,-300.547095,0.00030904,7]
[342024612,1731366677418,-300.547095,0.00030904,7]
[342024613,1731366677428,-300.547095,0.00030904,7]
[342024614,1731366677438,-300.547091,0.00030904,7]
[342024615,1731366677448,-278.14135,0.00030904,7]
[342024616,1731366677457,-278.14135,0.00030904,7]
[342024617,1731366677467,-278.14135,0.00030904,7]
[342024618,1731366677476,-278.14135,0.00030904,7]
[342024619,1731366677486,-278.14135,0.00030904,7]
[342024620,1731366677498,-278.14135,0.00030904,7]
[342024621,1731366677508,-278.14135,0.00030904,7]
[342024622,1731366677519,-278.14135,0.00030904,7]
[342024623,1731366677529,-278.14135,0.00030904,7]
[342024624,1731366677538,-278.14135,0.00030904,7]
[342024625,1731366677547,-278.14135,0.00030904,7]